bitfinex/quotes_ETHUSD_20250622
["timestamp","ask_amount","ask_price","bid_price","bid_amount"]
[1750629662810,0.2259878,2192.9,2192.2,0.8616]
[1750629662811,0.2259878,2192.9,2192.2,0.8328]
[1750629662952,0.2259878,2192.9,2192.2,6.97462491]
[1750629663149,0.2259878,2192.9,2192.3,14.56134314]
[1750629663358,0.2259878,2192.9,2192.2,2.413]
[1750629663619,0.7848,2192.7,2192.2,2.413]
[1750629663894,0.7848,2192.7,2192.3,0.04561456]
[1750629664183,0.0617,2192.6,2192.2,2.413]
[1750629664407,0.7848,2192.7,2192.3,10.04560998]
[1750629664692,0.0617,2192.6,2192.2,2.413]
[1750629664853,0.7848,2192.7,2192.2,2.413]
[1750629665055,0.2259878,2192.9,2192.4,10.0]
[1750629665775,0.2259878,2192.9,2192.6,10.0]
[1750629665981,0.2259878,2192.9,2192.7,2.412]
[1750629666507,0.2259878,2192.9,2192.8,22.45377964]
[1750629666658,0.2259878,2192.9,2192.8,22.40817942]
[1750629667255,0.8062,2194.0,2192.9,0.55]
[1750629667567,0.811,2194.5,2193.7,11.22712371]
[1750629667774,0.2259878,2195.1,2194.5,10.0]
[1750629667967,0.2259878,2195.1,2195.0,10.0]
[1750629669029,0.2876878,2195.1,2195.0,10.0]
[1750629669508,0.7635,2196.8,2195.1,10.0]
[1750629669813,0.0617,2196.5,2195.3,10.0]
[1750629670026,0.7635,2196.4,2195.3,10.0]
[1750629670517,0.7635,2196.4,2195.5,10.0]
[1750629670824,0.7635,2196.4,2195.7,14.55429709]
[1750629671029,0.7635,2196.4,2195.9,10.0]
[1750629671525,0.7635,2196.4,2195.9,10.44768902]
[1750629671707,0.7635,2196.4,2196.0,0.04553271]
[1750629672026,0.7635,2196.4,2196.0,10.0]
[1750629672177,0.7635,2196.4,2195.9,10.44768902]
[1750629672830,0.7635,2196.4,2195.9,0.44768902]
[1750629672973,0.7635,2196.4,2196.0,17.865]
[1750629673472,0.8093,2196.8,2196.0,20.35731096]
[1750629673907,0.8093,2196.8,2196.1,10.368]
[1750629674121,0.8093,2196.8,2196.2,10.0]
[1750629674476,0.8093,2196.8,2196.0,2.49231096]
[1750629674477,0.8093,2196.8,2196.0,12.49231096]
[1750629674822,0.8093,2196.8,2196.2,10.0]
[1750629675376,0.0565,2196.6,2196.0,10.0]
[1750629675586,0.0565,2196.2,2195.0,0.792]
[1750629675780,0.0565,2196.2,2194.3,5.92685736]
[1750629675781,0.0565,2195.8,2194.6,0.792]
[1750629675978,0.7864,2196.0,2194.4,2.503]
[1750629675979,0.6065,2195.5,2194.4,2.503]
[1750629676190,0.55,2195.4,2194.3,1.369734]
[1750629676412,0.55,2195.2,2194.3,1.81427769]
[1750629677115,0.0565,2196.3,2194.9,13.26171794]
[1750629677306,0.55,2196.2,2195.1,10.0]
[1750629677620,0.801,2196.4,2195.2,0.04555024]
[1750629677621,0.0565,2196.1,2195.2,0.04555024]
[1750629677815,0.0565,2196.1,2195.3,10.378]
[1750629678016,0.0565,2196.1,2195.4,10.04554168]
[1750629678203,0.0565,2196.1,2195.0,10.0]
[1750629678413,0.0565,2196.1,2195.2,10.0]
[1750629678629,0.0565,2196.1,2195.2,12.038]
[1750629678921,13.26171794,2197.4,2195.2,12.038]
[1750629678922,0.0565,2197.0,2195.4,10.0]
[1750629679127,0.0565,2196.8,2195.5,0.04553628]
[1750629679289,0.0565,2196.8,2195.6,17.876]
[1750629679494,0.0565,2196.8,2195.8,10.0]
[1750629679707,0.0565,2196.8,2195.9,0.04553024]
[1750629680025,0.0565,2196.8,2195.8,10.0]
[1750629680537,0.0565,2196.8,2195.9,10.0]
[1750629680889,0.0565,2196.8,2195.9,14.55390892]
[1750629681746,0.7894,2196.9,2196.2,23.26171794]
[1750629682042,1.0476878,2197.3,2196.7,10.0]
[1750629682251,1.0476878,2197.3,2196.9,10.0]
[1750629682475,0.2259878,2197.3,2197.0,0.04550962]
[1750629682876,0.2259878,2197.3,2196.9,1.368161]
[1750629683040,0.2259878,2197.3,2196.7,10.0]
[1750629683041,0.2259878,2197.3,2197.0,0.04551563]
[1750629683239,0.2259878,2197.3,2196.9,1.368179]
[1750629683426,0.2259878,2197.3,2196.9,10.0]
[1750629684058,0.2259878,2197.3,2196.6,10.373]
[1750629684240,0.7755,2197.2,2196.5,10.44974654]
[1750629684425,0.7755,2197.2,2196.4,11.368467]
[1750629684631,0.7755,2197.2,2196.4,10.0]
[1750629684847,0.7755,2197.2,2196.5,0.04552328]
[1750629685048,0.7755,2197.2,2196.0,14.02381794]
[1750629685265,0.7755,2197.2,2196.1,11.40526179]
[1750629685266,0.0565,2197.1,2196.1,11.40526179]
[1750629685435,0.0565,2197.1,2196.3,0.7755]
[1750629685650,0.0565,2196.8,2196.1,1.40526179]
[1750629685832,0.0565,2196.8,2196.0,10.44751285]
[1750629686029,0.0565,2196.8,2195.0,0.7534]
[1750629686030,0.8086,2196.6,2195.0,0.7534]
[1750629686235,0.0565,2196.2,2194.9,0.0288]
[1750629686435,2.5585,2196.2,2195.0,10.7521]
[1750629686755,2.5585,2196.2,2195.2,10.0]
[1750629687060,2.5585,2196.2,2195.2,2.502]
[1750629687262,0.0565,2196.2,2195.3,0.04554115]
[1750629687434,0.7521,2196.3,2195.1,4.55557835]
[1750629687634,0.0565,2196.2,2195.2,11.40786121]
[1750629688042,0.0565,2196.2,2195.3,0.04554468]
[1750629688339,0.0565,2196.2,2195.2,11.40786121]
[1750629688774,0.0565,2196.2,2195.3,10.0]
[1750629689627,0.0565,2196.2,2195.4,0.0455397]
[1750629689827,0.0565,2196.2,2195.4,1.65293486]
[1750629690355,0.55,2196.5,2195.5,10.0]
[1750629690664,0.8176,2196.6,2195.6,0.04553949]
[1750629690863,0.8176,2196.6,2195.7,10.0]
[1750629691971,0.0565,2196.5,2195.6,2.502]
[1750629692173,0.0565,2196.5,2195.7,10.04553845]
[1750629692342,0.0565,2196.5,2195.7,10.0]
[1750629693074,0.0565,2196.5,2195.8,0.04553367]
[1750629693643,0.0565,2196.5,2195.7,10.0]
[1750629694152,0.0565,2196.5,2195.8,0.04553367]
[1750629694343,0.8176,2196.6,2195.8,1.10619488]
[1750629694548,0.8176,2196.6,2196.0,23.26171794]
[1750629694740,0.8176,2196.6,2196.1,20.3848]
[1750629695144,0.8176,2196.6,2196.2,0.0288]
[1750629695384,0.7606,2197.1,2196.3,4.55308365]
[1750629695678,0.7606,2197.1,2196.4,0.54048836]
[1750629695884,0.7606,2197.1,2196.3,2.502]
[1750629696584,0.7606,2197.1,2196.4,0.04552267]
[1750629696883,0.7606,2197.1,2196.3,2.502]
[1750629697259,0.7606,2197.1,2196.3,7.05510626]
[1750629697568,0.7606,2197.1,2196.3,2.502]
[1750629697769,0.7606,2197.1,2196.4,0.25308]
[1750629697971,0.2259878,2197.3,2196.4,0.25308]
[1750629697972,0.2259878,2197.3,2197.0,13.26171794]
[1750629698284,0.7606,2198.4,2197.0,13.26171794]
[1750629698285,0.7775,2198.3,2197.6,4.5502751]
[1750629698447,0.7775,2198.3,2197.6,10.91009349]
[1750629698852,0.7775,2198.3,2197.6,0.91009349]
[1750629699051,0.7775,2198.3,2197.3,10.0288]
[1750629699281,0.834,2198.1,2197.5,1.367675]
[1750629699447,0.55,2197.7,2196.5,12.502]
[1750629699653,0.55,2197.7,2196.5,3.869675]
[1750629699654,0.7561,2197.6,2196.5,3.869675]
[1750629699885,0.0565,2197.5,2196.5,3.869675]
[1750629700189,0.0565,2197.5,2196.6,0.4151555]
[1750629700590,0.0565,2197.5,2196.7,10.0]
[1750629700965,0.0565,2197.5,2196.6,2.51]
[1750629701310,0.0565,2197.5,2196.1,4.55345432]
[1750629701311,0.0565,2197.3,2195.9,14.10181794]
[1750629701610,0.7709,2196.8,2196.0,2.5555267]
[1750629701754,0.7709,2196.8,2196.1,10.0]
[1750629701952,0.7709,2196.8,2196.2,1.25555267]
[1750629702158,0.7709,2196.8,2196.3,0.04552271]
[1750629702389,0.7709,2196.8,2196.2,11.25555267]
[1750629702556,0.7709,2196.8,2196.2,1.25555267]
[1750629702960,0.7584,2197.1,2196.2,1.25555267]
[1750629703256,0.7584,2197.1,2196.3,1.12555527]
[1750629703900,0.0565,2197.5,2196.4,10.0]
[1750629704120,0.8142,2197.5,2196.6,10.0]
[1750629704256,0.8142,2197.5,2196.8,10.0]
[1750629704864,0.8142,2197.5,2197.2,10.0]
[1750629705071,0.8142,2197.5,2197.2,2.51]
[1750629705554,0.8759,2197.5,2196.4,0.7936]
[1750629705775,0.8759,2197.5,2196.6,13.26171794]
[1750629705979,0.8142,2197.5,2196.7,10.04551129]
[1750629706177,0.8142,2197.5,2196.7,10.0]
[1750629707631,0.0617,2197.4,2196.7,2.51]
[1750629707854,0.0117,2197.4,2196.5,1.08773882]
[1750629708033,0.0117,2197.4,2196.6,10.0]
[1750629708329,0.0117,2197.4,2196.7,0.04551792]
[1750629708543,0.0117,2197.4,2196.6,10.74784054]
[1750629709628,0.8142,2197.5,2196.7,0.04551789]
[1750629709841,0.8142,2197.5,2196.6,10.74784054]
[1750629710689,0.8142,2197.5,2196.6,3.25784054]
[1750629711526,0.8142,2197.5,2196.7,0.04551683]
[1750629711696,0.7642,2197.5,2196.7,0.04551683]
[1750629711896,0.7642,2197.5,2196.6,3.25784054]
[1750629712421,0.7642,2197.5,2196.7,0.04551683]
[1750629712592,0.7642,2197.5,2196.6,3.25784054]
[1750629712791,0.7642,2197.5,2196.7,0.48007477]
[1750629713192,0.7642,2197.5,2196.7,0.43455794]
[1750629713391,0.7642,2197.5,2196.8,10.04551683]
[1750629713598,0.7642,2197.5,2197.0,10.0]
[1750629713921,0.7642,2197.5,2197.1,0.04550667]
[1750629714227,0.7642,2197.5,2197.1,1.24421613]
[1750629714731,0.7642,2197.5,2197.2,2.51]
[1750629715034,0.7642,2197.5,2197.1,1.19870946]
[1750629715729,0.7642,2197.5,2197.3,10.0]
[1750629715895,0.005,2197.9,2197.3,10.0]
[1750629716099,0.7972,2197.8,2197.1,1.19870946]
[1750629716298,0.7972,2197.8,2197.2,2.51]
[1750629716508,0.7972,2197.8,2196.8,10.0]
[1750629716708,0.8589,2197.8,2197.0,10.0]
[1750629716910,0.7912,2197.1,2195.7,5.32735624]
[1750629717239,0.7912,2196.6,2196.0,0.8589]
[1750629717451,0.7912,2196.6,2196.0,10.0]
[1750629717805,0.7912,2196.6,2196.1,0.04553363]
[1750629718109,0.7912,2196.6,2195.6,0.7912]
[1750629718310,0.7912,2196.6,2195.9,2.51]
[1750629718498,0.7912,2196.6,2196.0,10.0]
[1750629719341,0.8529,2196.6,2195.5,1.368835]
[1750629719553,0.8529,2196.6,2195.6,3.6468835]
[1750629719847,0.8529,2196.6,2195.7,10.0]
[1750629720012,0.8529,2196.6,2195.6,1.1368835]
[1750629720196,0.8302,2196.3,2195.5,1.368835]
[1750629720404,0.8302,2196.3,2194.9,13.26171794]
[1750629720405,0.55,2195.9,2194.7,1.27362477]
[1750629720735,0.8164,2195.8,2194.8,1.369447]
[1750629720948,0.8164,2195.8,2194.9,10.04555188]
[1750629721129,0.8164,2195.8,2194.8,1.369447]
[1750629721344,0.8164,2195.8,2194.9,13.7296447]
[1750629721520,0.8164,2195.8,2195.0,13.26171794]
[1750629721849,0.8164,2195.8,2195.2,10.062]
[1750629722035,0.8164,2195.8,2195.3,0.04554291]
[1750629722206,0.8164,2195.8,2195.4,0.062]
[1750629722844,0.8164,2195.8,2195.1,10.0]
[1750629722845,0.8164,2195.8,2195.1,10.062]
[1750629723041,0.8164,2195.8,2195.2,2.55554695]
[1750629724127,0.8291,2196.3,2195.4,0.062]
[1750629724440,0.8291,2196.3,2195.5,10.0]
[1750629724644,0.8291,2196.3,2195.6,0.0455385]
[1750629725714,0.8908,2196.3,2195.5,2.511]
[1750629726016,0.8908,2196.3,2195.5,0.33977]
[1750629726220,0.8908,2196.3,2195.6,0.04554118]
[1750629726417,0.8908,2196.3,2195.7,10.0]
[1750629726823,0.8908,2196.3,2195.4,10.062]
[1750629727044,0.8908,2196.3,2195.5,0.04553867]
[1750629727414,0.8908,2196.3,2195.4,0.062]
[1750629727617,0.8908,2196.3,2195.4,1.2816447]
[1750629728115,0.0617,2196.1,2195.4,1.2196447]
[1750629728433,0.0617,2195.4,2194.3,2.511]
[1750629728648,0.7506,2195.3,2194.4,0.87466003]
[1750629728849,0.7506,2195.3,2194.5,0.54319213]
[1750629729313,0.7506,2195.3,2194.6,2.511]
[1750629729514,0.7506,2195.3,2194.5,0.54319213]
[1750629729805,0.7506,2195.3,2194.4,0.8291]
[1750629729806,0.7506,2195.3,2194.6,2.49256004]
[1750629730153,0.7506,2195.3,2194.6,2.49356004]
[1750629730742,0.7506,2195.3,2194.6,0.04556004]
[1750629731546,0.7506,2195.1,2194.4,0.8291]
[1750629731776,0.8273,2194.3,2192.9,0.062]
[1750629732084,0.8524,2193.9,2193.5,0.7506]
[1750629732282,0.8524,2193.9,2192.9,0.062]
[1750629732777,0.8343,2193.7,2192.4,4.62306924]
[1750629732979,0.7726,2193.5,2192.5,0.46230692]
[1750629733131,0.6117,2193.4,2192.4,1.432987]
[1750629733332,0.0617,2193.4,2192.5,0.04560308]
[1750629733530,0.0617,2193.4,2192.5,11.41646589]
[1750629733826,0.0617,2193.4,2192.4,0.062]
[1750629734031,0.0617,2193.4,2192.5,1.370905]
[1750629734245,0.0617,2193.4,2192.6,0.64955765]
[1750629734454,0.7226,2193.5,2192.6,15.21021564]
[1750629734658,0.7226,2193.5,2192.7,0.0596]
[1750629734835,2.449,2194.0,2193.2,4.55941705]
[1750629735039,2.449,2194.0,2193.3,0.04558445]
[1750629735262,2.449,2194.0,2193.3,1.51207835]
[1750629735963,2.449,2194.0,2193.3,6.07136191]
[1750629736171,0.7769,2193.9,2193.3,6.07136191]
[1750629736531,0.7769,2193.9,2193.5,10.0]
[1750629737059,0.7769,2194.4,2193.6,0.04558368]
[1750629737277,0.7769,2194.4,2193.9,10.0]
[1750629737480,0.7769,2194.4,2193.8,10.0]
[1750629737644,0.7769,2194.4,2193.9,0.04557368]
[1750629737961,0.8367,2194.4,2193.6,1.00455837]
[1750629738158,0.8367,2194.4,2193.4,10.0]
[1750629738338,0.8367,2194.4,2193.5,0.04558097]
[1750629738667,0.8367,2194.4,2193.5,0.7]
[1750629738839,0.8367,2194.4,2193.6,0.04557993]
[1750629739165,0.8367,2194.4,2193.5,0.7]
[1750629739364,0.7769,2194.4,2193.9,13.26171794]
[1750629739565,0.8032,2195.0,2194.0,10.04557098]
[1750629739770,0.8032,2195.0,2194.3,4.55710067]
[1750629740063,0.8032,2195.0,2194.6,10.0]
[1750629740857,0.8032,2195.0,2194.5,10.0]
[1750629741059,0.8032,2195.0,2194.6,0.47732049]
[1750629741268,0.8032,2195.0,2194.2,10.0]
[1750629741568,0.8032,2195.0,2194.3,0.04556765]
[1750629741785,0.8032,2195.0,2194.2,0.04556764]
[1750629742268,0.8032,2195.0,2194.2,1.41549664]
[1750629742454,0.8032,2195.0,2194.2,11.41549664]
[1750629742659,0.8032,2195.0,2194.4,10.0]
[1750629742840,0.8032,2195.0,2194.5,0.04556347]
[1750629743032,0.8032,2195.0,2194.4,0.04556346]
[1750629743236,0.8032,2195.0,2194.2,1.369929]
[1750629743568,0.8032,2195.0,2194.4,10.0596]
[1750629743770,0.8032,2195.0,2194.5,12.46166781]
[1750629743965,0.8032,2195.0,2194.5,2.46166781]
[1750629744184,0.8032,2195.0,2194.2,11.369929]
[1750629744474,0.8032,2195.0,2194.3,0.04556742]
[1750629744837,0.8032,2195.0,2194.2,1.369929]
[1750629745066,0.0598,2194.9,2194.0,10.0]
[1750629745371,0.0598,2194.9,2194.1,1.4155741]
[1750629745568,0.0598,2194.9,2194.1,11.4155741]
[1750629745770,0.0598,2194.9,2194.2,1.59732945]
[1750629746139,0.0598,2194.9,2194.1,1.370004]
[1750629746537,0.0598,2194.9,2194.2,10.0]
[1750629746740,0.8032,2195.0,2194.3,0.04556779]
[1750629747059,0.8032,2195.0,2194.4,10.0]
[1750629747389,0.8032,2195.0,2194.2,12.449]
[1750629747539,0.8032,2195.0,2194.3,16.44045783]
[1750629747741,0.8032,2195.0,2194.3,16.39489609]
[1750629747946,0.8032,2195.0,2194.4,0.04555987]
[1750629748473,0.8032,2195.0,2194.4,10.04555987]
[1750629748677,0.8032,2195.0,2194.6,10.0]
[1750629748995,0.8032,2195.0,2194.6,2.15568372]
[1750629749147,0.8032,2195.0,2194.8,10.0]
[1750629749441,0.7715,2195.4,2194.9,10.04555606]
[1750629749642,0.7715,2195.4,2195.1,4.55552652]
[1750629749870,0.7715,2195.4,2195.2,0.5056555]
[1750629750069,0.7715,2195.4,2195.3,10.0]
[1750629750271,2.449,2196.2,2195.3,10.0]
[1750629750272,0.7691,2195.8,2195.3,10.0]
[1750629750454,0.8289,2195.8,2194.9,1.369304]
[1750629750689,0.8289,2195.8,2195.0,0.04554528]
[1750629750994,0.8289,2195.8,2195.1,10.0]
[1750629751292,0.8289,2195.8,2195.2,0.04554757]
[1750629751694,0.8289,2195.8,2195.1,1.59706274]
[1750629751909,0.8289,2195.8,2194.9,1.369304]
[1750629752205,0.8289,2195.8,2195.0,0.0455517]
[1750629752396,0.8289,2195.8,2195.1,10.0]
[1750629752587,0.8289,2195.8,2195.2,0.04555003]
[1750629753155,0.8289,2195.8,2195.0,4.55580449]
[1750629753353,0.8289,2195.8,2195.1,11.59251085]
[1750629753586,0.8289,2195.8,2195.2,0.04554752]
[1750629753989,0.8289,2195.8,2195.1,1.59251085]
[1750629755285,0.8289,2195.8,2195.1,2.96186385]
[1750629755858,0.7691,2195.8,2195.2,0.04554833]
[1750629756065,0.7691,2195.8,2195.2,0.80184834]
[1750629756272,0.7691,2195.8,2195.2,0.75630001]
[1750629756699,0.7691,2195.8,2195.1,2.96186385]
[1750629757691,0.7691,2195.8,2195.1,1.369353]
[1750629757912,0.7691,2195.8,2194.5,0.8235]
[1750629757913,0.55,2195.5,2194.1,0.7865]
[1750629758119,0.7605,2195.3,2194.5,1.369728]
[1750629758280,0.7605,2195.3,2194.6,0.04556225]
[1750629758620,0.7605,2195.3,2194.8,14.55606648]
[1750629758835,0.7605,2195.3,2195.0,10.0]
[1750629759135,0.7605,2195.3,2194.9,13.61858955]
[1750629760334,0.7605,2195.3,2194.9,1.36936]
[1750629760539,0.7605,2195.3,2194.3,10.0]
[1750629760700,0.7605,2195.3,2194.5,1.369728]
[1750629760895,0.7605,2195.3,2194.2,10.124]
[1750629761323,0.7605,2195.3,2194.2,1.369741]
[1750629761521,0.7956,2195.1,2194.2,1.369741]
[1750629762234,0.55,2194.6,2194.2,1.369741]
[1750629762420,0.0598,2194.3,2194.2,1.369741]
[1750629762930,0.0598,2194.3,2193.3,10.7703]
[1750629763147,0.7639,2194.2,2193.5,10.0]
[1750629763700,0.7639,2194.2,2193.6,0.04558259]
[1750629764000,0.7639,2194.2,2193.6,0.04558173]
[1750629764640,0.7639,2194.2,2193.5,10.0563]
[1750629765049,0.7639,2194.2,2193.5,10.0]
[1750629765262,2.38,2194.1,2193.4,1.32099]
[1750629765560,0.7998,2193.9,2192.7,7.8013]
[1750629765711,0.7567,2193.7,2192.6,0.7672]
[1750629765907,0.7567,2193.4,2192.9,1.370611]
[1750629766112,0.7567,2193.2,2192.2,0.8235]
[1750629766347,0.7567,2193.2,2192.3,1.90913172]
[1750629766640,2.38,2193.1,2192.2,0.0563]
[1750629766845,0.7567,2193.2,2192.2,1.371049]
[1750629767048,0.7672,2192.9,2191.9,0.8289]
[1750629767447,0.7672,2192.9,2192.0,1.371112]
[1750629767615,0.7672,2192.9,2192.0,1.83788818]
[1750629768214,0.7672,2192.6,2191.0,1.12417051]
[1750629768447,0.0611,2192.4,2191.5,5.9345488]
[1750629768650,0.0611,2192.4,2191.5,1.371475]
[1750629768949,0.774,2193.2,2191.6,1.33593912]
[1750629769152,0.774,2193.2,2192.2,10.0]
[1750629769475,0.774,2193.2,2192.5,10.0]
[1750629769680,0.774,2193.2,2192.4,14.56120991]
[1750629769837,0.774,2193.2,2192.5,4.56081233]
[1750629770157,0.774,2193.2,2192.7,10.0]
[1750629770325,0.774,2193.2,2192.6,10.0]
[1750629770667,0.774,2193.2,2192.7,0.04560002]
[1750629770861,0.774,2193.2,2192.6,1.67522386]
[1750629771069,0.774,2193.2,2192.5,10.0]
[1750629771961,0.774,2193.2,2192.4,16.94219882]
[1750629772243,0.774,2193.2,2192.3,10.0]
[1750629772440,0.6111,2193.1,2192.0,0.8216]
[1750629772645,0.6111,2193.1,2192.2,10.0]
[1750629772925,0.8312,2193.0,2192.2,0.46264969]
[1750629773124,0.8312,2193.0,2192.1,4.56180999]
[1750629773353,0.8312,2193.0,2192.2,0.5017893]
[1750629773863,0.8312,2193.0,2192.5,10.0]
[1750629774025,0.8312,2193.0,2192.6,0.0456058]
[1750629774426,0.8312,2193.0,2192.5,10.0]
[1750629774930,0.8312,2193.0,2192.5,4.56096749]
[1750629775128,0.8312,2193.0,2192.7,10.0]
[1750629775641,0.8312,2193.0,2192.6,10.0]
[1750629775835,0.8312,2193.0,2192.3,10.0]
[1750629775836,0.8923,2193.0,2192.3,10.0]
[1750629776042,0.8923,2193.0,2192.1,10.0]
[1750629776257,0.8923,2193.0,2192.5,10.0]
[1750629776462,0.8312,2193.0,2192.4,10.0]
[1750629776764,0.8312,2193.0,2192.5,4.60644588]
[1750629777250,0.8312,2193.0,2192.7,10.0]
[1750629777579,0.8019,2193.5,2192.9,4.56011598]
[1750629777873,0.8019,2193.5,2193.1,10.0]
[1750629778070,0.8019,2193.5,2193.2,0.0455957]
[1750629778863,0.8019,2193.5,2193.2,10.0455957]
[1750629779026,0.8019,2193.5,2193.4,10.0]
[1750629780556,0.8019,2193.5,2193.2,14.55950465]
[1750629780761,0.8019,2193.5,2193.3,0.04558852]
[1750629781060,0.8019,2193.5,2193.4,4.55913194]
[1750629781260,0.767,2193.9,2193.7,4.55837027]
[1750629781463,0.767,2193.9,2193.7,14.60400496]
[1750629781761,0.767,2193.5,2193.4,1.370267]
[1750629782061,0.767,2193.5,2193.1,0.0288]
[1750629782367,0.767,2193.8,2193.5,10.0]
[1750629782660,0.767,2193.8,2193.1,1.9948658]
[1750629782864,0.767,2193.8,2193.0,4.55993215]
[1750629783064,0.7898,2193.6,2192.9,1.370658]
[1750629783366,0.7898,2193.4,2192.8,1.370937]
[1750629783569,0.0611,2193.3,2192.8,1.370937]
[1750629783729,0.7898,2193.4,2192.9,0.04560185]
[1750629783929,0.7543,2193.1,2192.9,1.370768]
[1750629784141,0.8154,2193.1,2192.4,14.56116482]
[1750629784342,0.8154,2193.1,2192.4,11.37105]
[1750629784543,0.8154,2193.1,2192.4,1.37105]
[1750629784861,3.1974,2193.1,2191.9,0.8083]
[1750629785066,3.1974,2193.1,2192.5,0.7]
[1750629785267,0.0611,2193.0,2192.6,0.04560186]
[1750629785561,0.0611,2193.0,2192.3,10.0]
[1750629785726,0.0611,2192.4,2191.2,4.56366944]
[1750629785930,0.7872,2191.9,2190.9,0.0288]
[1750629786163,0.7872,2191.9,2191.0,7.93622903]
[1750629786470,0.8087,2192.6,2192.0,10.0]
[1750629786677,0.0611,2192.5,2192.1,0.04561128]
[1750629786856,0.0611,2192.5,2191.8,10.0]
[1750629787031,0.0611,2192.5,2191.6,0.0288]
[1750629787237,0.0611,2192.5,2191.4,10.0]
[1750629787552,0.8125,2192.4,2191.4,11.07518]
[1750629787868,0.7527,2192.2,2191.3,10.186]
[1750629788166,0.55,2192.1,2190.9,2.65117654]
[1750629788463,0.805,2191.7,2190.6,5.37593936]
[1750629788665,0.805,2191.7,2191.1,4.56378453]
[1750629788885,0.805,2191.7,2191.2,10.04563155]
[1750629789045,0.805,2191.7,2191.1,0.45637845]
[1750629789377,0.805,2191.7,2190.9,0.45559552]
[1750629789378,0.805,2191.7,2190.9,10.0]
[1750629789528,0.0611,2191.5,2190.7,0.2259878]
[1750629789731,0.7713,2191.4,2190.7,0.2259878]
[1750629789928,0.7713,2191.4,2190.9,4.56428176]
[1750629790166,0.7613,2191.8,2190.8,10.255]
[1750629790355,0.7613,2191.8,2190.9,1.84172168]
[1750629790867,0.7613,2191.8,2191.0,10.0]
[1750629791170,0.7613,2191.8,2190.8,10.0]
[1750629791465,0.7613,2191.8,2190.8,24.8225351]
[1750629791768,0.7613,2191.8,2190.8,24.8513351]
[1750629792167,0.0611,2191.5,2190.7,0.2259878]
[1750629792370,0.7832,2191.3,2190.7,0.2259878]
[1750629792938,0.6111,2191.2,2190.7,0.2259878]
[1750629793138,0.7698,2191.1,2190.7,0.2259878]
[1750629793948,0.0595,2191.0,2190.7,0.2259878]
[1750629794147,0.7698,2191.1,2190.7,0.2259878]
[1750629794347,0.8293,2191.1,2190.7,0.2259878]
[1750629794578,0.8091,2191.5,2191.0,10.0]
[1750629794878,0.8091,2191.5,2191.0,2.28630108]
[1750629795877,0.8091,2191.5,2191.0,2.25750108]
[1750629796168,0.8091,2191.5,2191.0,12.25750108]
[1750629796993,0.8091,2191.5,2190.7,0.2547878]
[1750629797176,0.8091,2191.5,2190.8,10.0]
[1750629797388,0.8091,2191.5,2190.7,10.2547878]
[1750629797541,0.8091,2191.5,2190.8,4.56451095]
[1750629797974,0.8091,2191.5,2191.0,0.0288]
[1750629798303,0.55,2191.4,2190.7,0.2259878]
[1750629798452,0.6095,2191.2,2190.7,0.2259878]
[1750629798650,0.6095,2191.0,2190.7,0.2259878]
[1750629798850,0.55,2191.0,2190.7,0.2259878]
[1750629799051,0.0595,2190.9,2190.7,0.2259878]
[1750629799403,0.55,2190.8,2190.7,0.2259878]
[1750629799581,1.372,2190.8,2190.7,0.2259878]
[1750629799884,1.372,2190.8,2190.7,0.1842878]
[1750629800075,0.7625,2190.8,2190.7,0.1842878]
[1750629800274,0.822,2190.8,2190.7,0.1842878]
[1750629800664,1.372,2190.8,2190.7,0.1842878]
[1750629803687,14.002,2190.8,2190.7,0.1842878]
[1750629803899,9.184,2190.8,2190.7,0.1842878]
[1750629805186,11.625,2190.8,2190.7,0.1842878]
[1750629805381,1.372,2190.8,2190.7,0.1842878]
[1750629805569,3.819,2190.8,2190.7,0.1842878]
[1750629807902,3.819,2190.8,2190.7,0.1342878]
[1750629808672,1.372,2190.8,2190.7,0.1342878]
[1750629808891,12.378193,2190.8,2190.7,0.1342878]
[1750629809103,12.437693,2190.8,2190.7,0.1342878]
[1750629809399,11.615,2190.8,2190.7,0.1342878]
[1750629809601,11.0055,2190.8,2190.7,0.1342878]
[1750629810102,0.7625,2190.8,2190.7,0.1342878]
[1750629810471,1.372,2190.8,2190.7,0.1342878]
[1750629811096,1.372,2190.8,2190.7,0.0925878]
[1750629811372,11.372,2190.8,2190.7,0.0925878]
[1750629812302,0.0595,2189.8,2188.9,0.0615]
[1750629812608,0.0595,2189.6,2188.6,0.2874878]
[1750629812804,0.0595,2189.6,2188.6,0.8487503]
[1750629813403,0.8259,2189.4,2188.6,0.8487503]
[1750629813629,0.8259,2189.4,2188.6,0.2874878]
[1750629814369,0.6095,2189.3,2188.6,0.2259878]
[1750629814509,0.6095,2189.0,2188.6,0.2259878]
[1750629814851,0.55,2188.8,2188.6,0.2259878]
[1750629815617,0.6095,2188.8,2188.6,0.2259878]
[1750629815863,0.7582,2189.1,2188.6,0.2259878]
[1750629816148,3.2657,2189.1,2188.6,0.2259878]
[1750629816305,0.55,2189.0,2188.6,0.2259878]
[1750629816502,0.55,2188.8,2188.6,0.2259878]
[1750629816741,3.2062,2189.1,2188.6,0.2259878]
[1750629816928,2.999,2189.0,2188.6,0.2874878]
[1750629817134,0.7582,2189.1,2188.6,0.2259878]
[1750629817303,0.7582,2189.1,2188.7,0.0615]
[1750629817509,0.7582,2189.1,2188.6,0.2259878]
[1750629817740,0.7582,2189.1,2188.7,0.0615]
[1750629818341,0.7582,2189.1,2188.6,0.2259878]
[1750629818642,0.55,2189.0,2188.6,0.2259878]